fUST/lending_fUST_20240412
["ID","MTS","AMOUNT","RATE_DAILY","PERIOD"]
[322230535,1712904643269,-500.0,0.00027671,2]
[322230537,1712904643278,-500.0,0.00027671,2]
[322230539,1712904643287,-1100.7,0.00027671,2]
[322230541,1712904643296,-317.77372815,0.00027671,2]
[322230543,1712904643306,-500.0,0.00027671,2]
[322230545,1712904643315,-500.0,0.00027671,2]
[322230547,1712904643324,-500.0,0.00027671,2]
[322230549,1712904643333,-1282.68,0.00027671,2]
[322230551,1712904643342,-500.0,0.00027671,2]
[322230553,1712904643351,-252.61919789,0.00027671,2]
[322230555,1712904643360,-361.61812512,0.00027671,2]
[322230557,1712904643370,-500.0,0.00027671,2]
[322230559,1712904643379,-500.0,0.00027671,2]
[322230561,1712904643389,-500.0,0.00027671,2]
[322230563,1712904643397,-500.0,0.00027671,2]
[322230565,1712904643407,-500.0,0.00027671,2]
[322230567,1712904643416,-500.0,0.00027671,2]
[322230569,1712904643426,-4396.63,0.00027671,2]
[322230571,1712904643435,-621.58,0.00027671,2]
[322230573,1712904643444,-3006.67,0.00027671,2]
[322230575,1712904643453,-500.0,0.00027671,2]
[322230577,1712904643462,-500.0,0.00027671,2]
[322230579,1712904643471,-1175.79,0.00027671,2]
[322230580,1712904643480,-500.0,0.00027671,2]
[322230582,1712904643489,-500.80320733,0.00027671,2]
[322230584,1712904643498,-500.0,0.00027671,2]
[322230586,1712904643507,-2391.34,0.00027671,2]
[322230588,1712904643516,-500.0,0.00027671,2]
[322230590,1712904643524,-1801.17,0.00027671,2]
[322230592,1712904643535,-12624.19,0.00027671,2]
[322230594,1712904643544,-1423.78,0.00027671,2]
[322230596,1712904643552,-386.719727,0.00027671,2]
[322230598,1712904643562,-386.719727,0.00027671,2]
[322230599,1712904643571,-386.719727,0.00027671,2]
[322230601,1712904643580,-500.0,0.00027671,2]
[322230603,1712904643589,-386.719727,0.00027671,2]
[322230605,1712904643598,-386.719727,0.00027671,2]
[322230607,1712904643607,-500.0,0.00027671,2]
[322230609,1712904643616,-386.719727,0.00027671,2]
[322230611,1712904643625,-417.90975819,0.00027671,2]
[322230613,1712904643634,-386.719727,0.00027671,2]
[322230615,1712904643644,-386.719727,0.00027671,2]
[322230617,1712904643653,-386.719727,0.00027671,2]
[322230619,1712904643662,-386.719727,0.00027671,2]
[322230621,1712904643671,-386.719727,0.00027671,2]
[322230623,1712904643680,-386.719725,0.00027671,2]
[322230625,1712904643689,-500.0,0.00027671,2]
[322230627,1712904643697,-863.20842081,0.00027671,2]
[322230657,1712904646383,-814.5034106,0.00026181,2]
[322230658,1712904646393,-150.318,0.00027341,2]
[322230659,1712904646402,-339.67157919,0.00027671,2]
[322230660,1712904646411,-552.2,0.00027671,2]
[322230661,1712904646421,-500.0,0.00027671,2]
[322230662,1712904646430,-500.0,0.00027671,2]
[322230663,1712904646439,-500.0,0.00027671,2]
[322230664,1712904646449,-1590.85,0.00027671,2]
[322230665,1712904646460,-500.0,0.00027671,2]
[322230666,1712904646469,-436.473038,0.00027671,2]
[322230667,1712904646481,-734.016962,0.00027671,2]
[322230668,1712904646490,-500.0,0.00027671,2]
[322230669,1712904646499,-1173.01,0.00027671,2]
[322230670,1712904646509,-15036.61,0.00027671,2]
[322230671,1712904646518,-500.0,0.00027671,2]
[322230672,1712904646527,-500.0,0.00027671,2]
[322230673,1712904646538,-500.0,0.00027671,2]
[322230674,1712904646547,-500.0,0.00027671,2]
[322230675,1712904646557,-500.0,0.00027671,2]
[322230676,1712904646566,-3250.61,0.00027671,2]
[322230677,1712904646576,-500.0,0.00027671,2]
[322230678,1712904646585,-504.6238485,0.00027671,2]
[322230679,1712904646596,-243.72914533,0.00027671,2]
[322230750,1712905545106,-409.13988987,0.00025571,2]
[322230751,1712905545142,-250.0,0.00026091,2]
[322230752,1712905545164,-176.67842,0.00026101,2]
[322230753,1712905545188,-3147.1359391,0.00026396,2]
[322230754,1712905545211,-213.526047,0.00026396,2]
[322230755,1712905545232,-1993.0,0.00027,2]
[322230756,1712905545253,-158.0,0.00027,2]
[322230757,1712905545276,-156.41441149,0.00027294,2]
[322230758,1712905545298,-300.0,0.00027394,2]
[322230759,1712905545319,-300.0,0.00027394,2]
[322230760,1712905545345,-923.19430017,0.00027395,2]
[322230761,1712905545367,-3608.64683983,0.00027395,2]
[322230762,1712905545392,-274.29572658,0.00027396,2]
[322230763,1712905545413,-500.0,0.00027397,2]
[322230764,1712905545441,-810.18,0.00027397,2]
[322230765,1712905545466,-421.88630162,0.00027397,2]
[322230770,1712905651163,-272.75992658,0.00025297,2]
[322230771,1712905651186,-8144.96473121,0.0002737,2]
[322230772,1712905651210,-300.0,0.00027396,2]
[322230773,1712905651233,-300.0,0.00027396,2]
[322230774,1712905651257,-526.96002023,0.00027397,2]
[322230775,1712905651279,-190.64638675,0.00027397,2]
[322230776,1712905651301,-500.0,0.00027397,2]
[322230777,1712905651324,-168.03209167,0.00027397,2]
[322230806,1712905832441,-213.526047,0.00026398,2]
[322230807,1712905832450,-8144.96473121,0.0002737,2]
[322230808,1712905832459,-2616.74714193,0.00027395,2]
[322230809,1712905832469,-300.0,0.00027396,2]
[322230810,1712905832482,-300.0,0.00027396,2]
[322230811,1712905832491,-500.0,0.00027397,2]
[322230812,1712905832500,-470.35720467,0.00027397,2]
[322230814,1712905832509,-500.0,0.00027397,2]
[322230816,1712905832520,-500.0,0.00027397,2]
[322230818,1712905832530,-500.0,0.00027397,2]
[322230820,1712905832540,-500.0,0.00027397,2]
[322230822,1712905832550,-500.0,0.00027397,2]
[322230824,1712905832560,-500.0,0.00027397,2]
[322230825,1712905832570,-500.0,0.00027397,2]
[322230826,1712905832579,-500.0,0.00027397,2]
[322230827,1712905832589,-506.596657,0.00027397,2]
[322230828,1712905832599,-500.81484132,0.00027397,2]
[322230829,1712905832609,-500.0,0.00027397,2]
[322230830,1712905832619,-500.0,0.00027397,2]
[322230831,1712905832628,-1440.02,0.00027397,2]
[322230832,1712905832641,-500.0,0.00027397,2]
[322230833,1712905832650,-500.37597184,0.00027397,2]
[322230834,1712905832661,-500.0,0.00027397,2]
[322230835,1712905832671,-500.0,0.00027397,2]
[322230836,1712905832680,-500.0,0.00027397,2]
[322230837,1712905832689,-520.94350634,0.00027397,2]
[322230838,1712905832699,-500.0,0.00027397,2]
[322230839,1712905832708,-500.0,0.00027397,2]
[322230840,1712905832717,-500.0,0.00027397,2]
[322230841,1712905832727,-500.0,0.00027397,2]
[322230842,1712905832737,-158.067665,0.00027397,2]
[322230843,1712905832746,-500.0,0.00027397,2]
[322230844,1712905832755,-500.0,0.00027397,2]
[322230845,1712905832764,-500.0,0.00027397,2]
[322230846,1712905832774,-500.0,0.00027397,2]
[322230847,1712905832783,-500.0,0.00027397,2]
[322230848,1712905832792,-500.0,0.00027397,2]
[322230849,1712905832802,-500.0,0.00027397,2]
[322230850,1712905832811,-1175.79,0.00027397,2]
[322230851,1712905832820,-500.0,0.00027397,2]
[322230852,1712905832831,-500.0,0.00027397,2]
[322230853,1712905832840,-500.0,0.00027397,2]
[322230854,1712905832850,-500.0,0.00027397,2]
[322230855,1712905832859,-500.0,0.00027397,2]
[322230856,1712905832869,-501.9436051,0.00027397,2]
[322230857,1712905832879,-500.0,0.00027397,2]
[322230858,1712905832888,-500.0,0.00027397,2]
[322230859,1712905832898,-500.0,0.00027397,2]
[322230860,1712905832908,-500.0,0.00027397,2]
[322230861,1712905832918,-500.0,0.00027397,2]
[322230862,1712905832927,-500.0,0.00027397,2]
[322230863,1712905832937,-500.0,0.00027397,2]
[322230864,1712905832946,-500.0,0.00027397,2]
[322230865,1712905832955,-500.0,0.00027397,2]
[322230866,1712905832965,-500.0,0.00027397,2]
[322230867,1712905832974,-500.0,0.00027397,2]
[322230868,1712905832986,-500.0,0.00027397,2]
[322230869,1712905832995,-500.0,0.00027397,2]
[322230870,1712905833004,-564.26,0.00027397,2]
[322230871,1712905833013,-500.0,0.00027397,2]
[322230872,1712905833023,-500.0,0.00027397,2]
[322230873,1712905833032,-500.0,0.00027397,2]
[322230874,1712905833041,-500.0,0.00027397,2]
[322230875,1712905833050,-500.0,0.00027397,2]
[322230876,1712905833060,-500.0,0.00027397,2]
[322230877,1712905833069,-622.35,0.00027397,2]
[322230878,1712905833078,-1368.87,0.00027397,2]
[322230879,1712905833088,-500.0,0.00027397,2]
[322230880,1712905833097,-500.0,0.00027397,2]
[322230881,1712905833106,-500.0,0.00027397,2]
[322230882,1712905833116,-500.0,0.00027397,2]
[322230883,1712905833125,-1849.33,0.00027397,2]
[322230884,1712905833134,-500.0,0.00027397,2]
[322230885,1712905833144,-964.46,0.00027397,2]
[322230886,1712905833153,-1301.36,0.00027397,2]
[322230887,1712905833162,-500.0,0.00027397,2]
[322230888,1712905833171,-500.0,0.00027397,2]
[322230889,1712905833181,-500.0,0.00027397,2]
[322230890,1712905833191,-500.0,0.00027397,2]
[322230891,1712905833200,-500.0,0.00027397,2]
[322230892,1712905833209,-500.0,0.00027397,2]
[322230893,1712905833219,-630.97746169,0.00027397,2]
[322230894,1712905833229,-1008.97,0.00027397,2]
[322230895,1712905833238,-1680.48,0.00027397,2]
[322230896,1712905833247,-776.42,0.00027397,2]
[322230897,1712905833256,-500.0,0.00027397,2]
[322230898,1712905833265,-500.0,0.00027397,2]
[322230899,1712905833275,-500.0,0.00027397,2]
[322230900,1712905833285,-558.29,0.00027397,2]
[322230901,1712905833294,-500.0,0.00027397,2]
[322230902,1712905833303,-262.44829625,0.00027397,2]
[322230903,1712905833313,-1082.11,0.00027397,2]
[322230904,1712905833322,-1815.96,0.00027397,2]
[322230905,1712905833331,-578.11369838,0.00027397,2]
[322230906,1712905833340,-193.57348806,0.00027397,2]
[322230907,1712905833349,-500.0,0.00027397,2]
[322230908,1712905833358,-569.78,0.00027397,2]
[322230909,1712905833367,-500.0,0.00027397,2]
[322230910,1712905833376,-500.0,0.00027397,2]
[322230911,1712905833385,-504.40538435,0.00027397,2]
[322230912,1712905833395,-2198.56000515,0.00027397,10]
[322230915,1712905838371,-1150.24470326,0.00027397,10]
[322230931,1712905839131,-2862.35533021,0.00027397,10]
[322230942,1712905839223,-2440.07686414,0.00027397,10]
[322231047,1712905840488,-2626.09121792,0.00027397,10]
[322231050,1712905840504,-1387.83009112,0.00027397,10]
[322231052,1712905840514,-500.0,0.00027397,2]
[322231053,1712905840526,-500.0,0.00027397,2]
[322231056,1712905840535,-501.98289629,0.00027397,2]
[322231058,1712905840544,-2756.11,0.00027397,2]
[322231059,1712905840554,-500.0,0.00027397,2]
[322231061,1712905840564,-1671.91,0.00027397,2]
[322231063,1712905840573,-23.93992526,0.00027397,2]
[322231381,1712905843685,-4006.31007474,0.00027397,2]
[322231383,1712905843694,-500.0,0.00027397,2]
[322231385,1712905843704,-500.0,0.00027397,2]
[322231387,1712905843713,-500.0,0.00027397,2]
[322231389,1712905843722,-2192.06,0.00027397,2]
[322231391,1712905843731,-500.0,0.00027397,2]
[322231393,1712905843741,-1123.47,0.00027397,2]
[322231395,1712905843750,-1458.28,0.00027397,2]
[322231397,1712905843760,-1083.74,0.00027397,2]
[322231399,1712905843768,-1305.13,0.00027397,2]
[322231401,1712905843778,-14487.2,0.00027397,2]
[322231403,1712905843787,-12163.57,0.00027397,2]
[322231404,1712905843797,-500.0,0.00027397,2]
[322231405,1712905843805,-506.18,0.00027397,2]
[322231406,1712905843815,-500.0,0.00027397,2]
[322231407,1712905843823,-500.0,0.00027397,2]
[322231408,1712905843832,-500.0,0.00027397,2]
[322231409,1712905843841,-500.0,0.00027397,2]
[322231410,1712905843850,-2979.72,0.00027397,2]
[322231411,1712905843859,-500.0,0.00027397,2]
[322231412,1712905843868,-500.0,0.00027397,2]
[322231413,1712905843877,-500.0,0.00027397,2]
[322231414,1712905843886,-500.0,0.00027397,2]
[322231415,1712905843896,-1072.95,0.00027397,2]
[322231416,1712905843905,-500.0,0.00027397,2]
[322231417,1712905843914,-500.0,0.00027397,2]
[322231418,1712905843923,-500.0,0.00027397,2]
[322231419,1712905843932,-984.11,0.00027397,2]
[322231420,1712905843941,-497.82549668,0.00027397,2]
[322231421,1712905843950,-1120.04,0.00027397,2]
[322231422,1712905843959,-500.0,0.00027397,2]
[322231423,1712905843968,-500.0,0.00027397,2]
[322231424,1712905843976,-584.49,0.00027397,2]
[322231425,1712905843986,-511.86025329,0.00027397,2]
[322231427,1712905843995,-994.27,0.00027397,2]
[322231429,1712905844004,-500.0,0.00027397,2]
[322231431,1712905844013,-241.59,0.00027397,2]
[322231433,1712905844023,-2348.85,0.00027397,2]
[322231435,1712905844033,-1261.31,0.00027397,2]
[322231436,1712905844043,-500.0,0.00027397,2]
[322231438,1712905844052,-500.0,0.00027397,2]
[322231440,1712905844061,-500.0,0.00027397,2]
[322231442,1712905844070,-6129.51,0.00027397,2]
[322231444,1712905844079,-500.0,0.00027397,2]
[322231446,1712905844088,-1162.57,0.00027397,2]
[322231449,1712905844099,-519.79491341,0.00027397,2]
[322231451,1712905844108,-500.0,0.00027397,2]
[322231452,1712905844117,-764.7,0.00027397,2]
[322231454,1712905844127,-1676.56,0.00027397,2]
[322231456,1712905844139,-492.18490399,0.00027397,2]
[322231458,1712905844152,-500.0,0.00027397,2]
[322231460,1712905844161,-4572.68,0.00027397,2]
[322231462,1712905844171,-500.0,0.00027397,2]
[322231464,1712905844182,-500.0,0.00027397,2]
[322231466,1712905844191,-1679.98,0.00027397,2]
[322231468,1712905844202,-415.12604386,0.00027397,2]
[322231470,1712905844211,-166.666666,0.00027397,2]
[322231472,1712905844221,-170.694259,0.00027397,2]
[322231475,1712905844231,-973.1152521,0.000274,2]
[322231476,1712905844241,-153.787914,0.00027479,2]
[322231478,1712905844251,-153.0,0.00027479,2]
[322231480,1712905844261,-153.0,0.00027479,2]
[322231482,1712905844270,-1000.858317,0.000276,2]
[322231484,1712905844281,-21836.95241242,0.0002767,2]
[322231487,1712905844291,-83.52452806,0.00027671,2]
[322233790,1712906844160,-277.24658734,0.00024863,2]
[322233791,1712906844182,-250.0,0.00024864,2]
[322233792,1712906844209,-161.66972791,0.00024865,2]
[322233793,1712906844232,-1087.97739489,0.00024866,2]
[322233794,1712906844253,-245.60818928,0.00025,2]
[322233795,1712906844273,-150.0,0.0002557,2]
[322233796,1712906844294,-160.0,0.00027,2]
[322233797,1712906844314,-1044.8860474,0.00027297,2]
[322233798,1712906844337,-300.0,0.00027299,2]
[322233799,1712906844358,-300.0,0.00027299,2]
[322233800,1712906844378,-153.0,0.000273,2]
[322233801,1712906844399,-3816.51542658,0.000273,2]
[322233802,1712906844420,-1044.8860474,0.00027366,2]
[322233803,1712906844445,-627.94724175,0.00027379,2]
[322233804,1712906844467,-716.96368848,0.00027395,2]
[322233823,1712907032774,-250.0,0.00025278,2]
[322233824,1712907032784,-377.09882901,0.00025279,2]
[322233825,1712907032793,-154.20153552,0.00027197,2]
[322233826,1712907032803,-754.41394633,0.00027295,3]
[322233827,1712907032812,-626.93162844,0.00027297,2]
[322233828,1712907032821,-626.93162844,0.00027365,2]
[322233829,1712907032831,-300.0,0.00027367,2]
[322233830,1712907032841,-300.0,0.00027367,2]
[322233831,1712907032853,-8144.96473121,0.00027368,2]
[322233832,1712907032862,-4370.48789877,0.00027395,2]
[322233833,1712907032871,-702.6039036,0.00027395,2]
[322233834,1712907032882,-236.37738345,0.00027395,2]
[322233835,1712907032892,-278.21810736,0.00027395,2]
[322233836,1712907032902,-7087.06023929,0.00027395,2]
[322233837,1712907033087,-8443.43880787,0.00027395,10]
[322233838,1712907033097,-157.02069345,0.00027396,2]
[322233839,1712907033107,-522.2628737,0.00027396,2]
[322233840,1712907033117,-558.12407666,0.00027396,2]
[322233841,1712907033126,-256.43642088,0.00027396,2]
[322233842,1712907033136,-459.53504343,0.00027396,2]
[322233843,1712907033145,-500.0,0.00027397,2]
[322233844,1712907033154,-1126.8,0.00027397,2]
[322233845,1712907033164,-201.58165915,0.00027397,2]
[322233846,1712907033173,-500.0,0.00027397,2]
[322233847,1712907033182,-500.0,0.00027397,2]
[322233848,1712907033191,-500.0,0.00027397,2]
[322233849,1712907033200,-500.0,0.00027397,2]
[322233850,1712907033210,-500.0,0.00027397,2]
[322233851,1712907033221,-795.22,0.00027397,2]
[322233852,1712907033230,-500.0,0.00027397,2]
[322233853,1712907033240,-514.45,0.00027397,2]
[322233854,1712907033249,-500.0,0.00027397,2]
[322233855,1712907033259,-500.0,0.00027397,2]
[322233856,1712907033268,-500.0,0.00027397,2]
[322233857,1712907033278,-500.0,0.00027397,2]
[322233858,1712907033288,-500.0,0.00027397,2]
[322233859,1712907033298,-500.0,0.00027397,2]
[322233860,1712907033307,-232.63186136,0.00027397,2]
[322233861,1712907033316,-492.16815686,0.00027397,2]
[322233862,1712907033325,-500.0,0.00027397,2]
[322233863,1712907033335,-500.0,0.00027397,2]
[322233864,1712907033344,-500.0,0.00027397,2]
[322233865,1712907033354,-500.0,0.00027397,2]
[322233866,1712907033364,-500.0,0.00027397,2]
[322233867,1712907033373,-582.93,0.00027397,2]
[322233868,1712907033383,-500.0,0.00027397,2]
[322233869,1712907033392,-500.0,0.00027397,2]
[322233870,1712907033402,-518.85610216,0.00027397,2]
[322233871,1712907033411,-500.0,0.00027397,2]
[322233872,1712907033420,-500.0,0.00027397,2]
[322233873,1712907033429,-500.0,0.00027397,2]
[322233874,1712907033438,-500.0,0.00027397,2]
[322233875,1712907033446,-500.0,0.00027397,2]
[322233876,1712907033455,-500.0,0.00027397,2]
[322233877,1712907033464,-617.26,0.00027397,2]
[322233878,1712907033475,-500.0,0.00027397,2]
[322233879,1712907033485,-506.66489021,0.00027397,2]
[322233880,1712907033494,-500.0,0.00027397,2]
[322233881,1712907033503,-500.0,0.00027397,2]
[322233882,1712907033512,-500.0,0.00027397,2]
[322233883,1712907033521,-503.77683325,0.00027397,2]
[322233884,1712907033530,-500.0,0.00027397,2]
[322233885,1712907033538,-500.0,0.00027397,2]
[322233886,1712907033547,-500.0,0.00027397,2]
[322233887,1712907033557,-500.0,0.00027397,2]
[322233888,1712907033565,-1793.1,0.00027397,2]
[322233889,1712907033574,-500.0,0.00027397,2]
[322233890,1712907033583,-500.0,0.00027397,2]
[322233891,1712907033592,-1002.64,0.00027397,2]
[322233892,1712907033600,-500.0,0.00027397,2]
[322233893,1712907033609,-500.0,0.00027397,2]
[322233894,1712907033618,-500.0,0.00027397,2]
[322233895,1712907033627,-502.15530542,0.00027397,2]
[322233896,1712907033636,-478.32587109,0.00027397,2]
[322233897,1712907033645,-503.72671144,0.00027397,2]
[322233898,1712907033654,-500.0,0.00027397,2]
[322233899,1712907033662,-500.0,0.00027397,2]
[322233900,1712907033671,-945.11,0.00027397,2]
[322233901,1712907033681,-500.0,0.00027397,2]
[322233902,1712907033690,-1332.67,0.00027397,2]
[322233903,1712907033699,-500.0,0.00027397,2]
[322233904,1712907033708,-326.40000184,0.00027397,2]
[322233905,1712907033717,-1267.97,0.00027397,2]
[322233906,1712907033729,-987.76,0.00027397,2]
[322233907,1712907033738,-500.0,0.00027397,2]
[322233908,1712907033748,-500.72848521,0.00027397,2]
[322233909,1712907033757,-500.0,0.00027397,2]
[322233910,1712907033767,-500.0,0.00027397,2]
[322233911,1712907033776,-506.77901905,0.00027397,2]
[322233912,1712907033785,-500.0,0.00027397,2]
[322233913,1712907033794,-500.0,0.00027397,2]
[322233914,1712907033803,-500.0,0.00027397,2]
[322233915,1712907033812,-506.10115789,0.00027397,2]
[322233916,1712907033821,-566.87,0.00027397,2]
[322233917,1712907033830,-502.94347435,0.00027397,2]
[322233918,1712907033842,-500.0,0.00027397,2]
[322233919,1712907033852,-416.47547194,0.00027397,2]
[322233920,1712907033861,-500.0,0.00027397,2]
[322233921,1712907033872,-1457.37,0.00027397,2]
[322233922,1712907033882,-500.0,0.00027397,2]
[322233923,1712907033893,-2792.66,0.00027397,2]
[322233924,1712907033903,-500.0,0.00027397,2]
[322233925,1712907033912,-1783.62,0.00027397,2]
[322233926,1712907033922,-512.2127395,0.00027397,2]
[322233927,1712907033931,-2133.79,0.00027397,2]
[322233928,1712907033940,-3986.13,0.00027397,2]
[322233929,1712907033949,-500.0,0.00027397,2]
[322233930,1712907033959,-11656.75,0.00027397,2]
[322233931,1712907033968,-500.0,0.00027397,2]
[322233932,1712907033978,-500.0,0.00027397,2]
[322233933,1712907033987,-500.0,0.00027397,2]
[322233934,1712907033996,-1250.75,0.00027397,2]
[322233935,1712907034006,-500.0,0.00027397,2]
[322233936,1712907034017,-1501.51,0.00027397,2]
[322233937,1712907034026,-1059.42,0.00027397,2]
[322233938,1712907034036,-1097.49,0.00027397,2]
[322233939,1712907034045,-500.0,0.00027397,2]
[322233940,1712907034054,-500.0,0.00027397,2]
[322233941,1712907034064,-500.0,0.00027397,2]
[322233942,1712907034073,-362.90591462,0.00027397,2]
[322233943,1712907034083,-500.0,0.00027397,2]
[322233944,1712907034092,-500.0,0.00027397,2]
[322233945,1712907034101,-500.0,0.00027397,2]
[322233946,1712907034110,-1623.08,0.00027397,2]
[322233947,1712907034119,-500.0,0.00027397,2]
[322233948,1712907034129,-504.02862439,0.00027397,2]
[322233949,1712907034138,-1028.24,0.00027397,2]
[322233950,1712907034147,-500.0,0.00027397,2]
[322233951,1712907034157,-500.0,0.00027397,2]
[322233952,1712907034166,-39.07963579,0.00027397,2]
[322233981,1712907039045,-925.13036421,0.00027397,2]
[322233983,1712907039054,-500.0,0.00027397,2]
[322233985,1712907039064,-500.0,0.00027397,2]
[322233987,1712907039073,-5480.89389594,0.00027397,2]
[322233991,1712907039085,-2718.79188958,0.00027397,2]
[322234151,1712907040666,-5798.79421448,0.00027397,2]
[322234153,1712907040678,-1140.03,0.00027397,2]
[322234156,1712907040689,-500.0,0.00027397,2]
[322234158,1712907040699,-580.97,0.00027397,2]
[322234160,1712907040709,-500.0,0.00027397,2]
[322234162,1712907040721,-2876.4,0.00027397,2]
[322234164,1712907040732,-528.46260635,0.00027397,2]
[322234165,1712907040743,-500.0,0.00027397,2]
[322234167,1712907040755,-500.0,0.00027397,2]
[322234170,1712907040767,-117.97667011,0.00027397,2]
[322234482,1712907043836,-1111.60332989,0.00027397,2]
[322234483,1712907043849,-500.0,0.00027397,2]
[322234484,1712907043859,-500.0,0.00027397,2]
[322234485,1712907043868,-500.0,0.00027397,2]
[322234486,1712907043877,-500.0,0.00027397,2]
[322234487,1712907043887,-2271.81,0.00027397,2]
[322234488,1712907043897,-4601.49,0.00027397,2]
[322234489,1712907043906,-1692.14,0.00027397,2]
[322234490,1712907043915,-288.52461699,0.00027397,2]
[322234491,1712907043930,-211.47538301,0.00027397,2]
[322234492,1712907043939,-2978.63191215,0.00027397,2]
[322234493,1712907043962,-2926.61808785,0.00027397,2]
[322234494,1712907043971,-1192.99,0.00027397,2]
[322234495,1712907043981,-51.69642606,0.00027397,2]
[322235751,1712907300102,-190.5596983,0.00027397,14]
[322235752,1712907300132,-110.4527467,0.000279,13]
[322235753,1712907300213,-1402.64038532,0.00028077,30]
[322235754,1712907300231,-743.94751754,0.00028077,30]
[322235755,1712907300264,-7036.19900656,0.00027397,10]
[322235756,1712907300292,-190.5596983,0.000279,13]
[322235757,1712907300321,-160.0,0.00028474,7]
[322235758,1712907300344,-160.0,0.00028645,8]
[322235759,1712907300368,-160.0,0.00028817,9]
[322235760,1712907300387,-160.0,0.00028988,10]
[322235761,1712907300410,-160.0,0.0002916,11]
[322235762,1712907300433,-160.0,0.00029332,12]
[322235763,1712907300451,-160.0,0.00029503,13]
[322235764,1712907300473,-160.0,0.00029675,14]
[322235765,1712907300492,-1782.23046105,0.0002978,10]
[322235766,1712907300510,-160.0,0.00029847,15]
[322235767,1712907300532,-5570.9488117,0.0003,7]
[322235768,1712907300551,-160.0,0.00030018,16]
[322235769,1712907300574,-160.0,0.0003019,17]
[322235770,1712907300592,-160.0,0.00030361,18]
[322235771,1712907300611,-397.52369692,0.0003041,7]
[322235772,1712907312875,3665.85968242,0.00027397,10]
[322235773,1712907332869,1905.08912928,0.00027397,10]
[322235774,1712907332889,1760.77055314,0.00027397,10]
[322235775,1712907350882,21.45990791,0.00027397,10]
[322235776,1712907350904,3644.39977451,0.00027397,10]
[322235777,1712907368900,3391.79923205,0.00027397,10]
[322235779,1712907957125,-250.0,0.0002527,2]
[322235780,1712907957146,-154.84515485,0.00025271,2]
[322235781,1712907957167,-251.39921934,0.00025297,2]
[322235782,1712907957188,-176.67842,0.0002605,2]
[322235783,1712907957209,-154.20153552,0.00026094,2]
[322235784,1712907957228,-200.0,0.00026194,2]
[322235785,1712907957249,-300.0,0.00026999,2]
[322235786,1712907957271,-300.0,0.00026999,2]
[322235787,1712907957291,-92.86106631,0.00027,2]
[322235847,1712908233778,-173.2464483,0.00026999,2]
[322235848,1712908233789,-126.7535517,0.00026999,2]
[322235849,1712908233798,-250.5464483,0.00026999,2]
[322235939,1712908238882,-49.4535517,0.00026999,2]
[322235941,1712908238892,-521.79499054,0.00027,2]
[322235969,1712908239121,-498.69678939,0.00027,2]
[322236355,1712908243112,-546.50822007,0.00027,2]
[322236357,1712908243122,-308.49177993,0.00027,2]
[322236621,1712908476378,1537.823176,0.0002,120]
[322236623,1712908570055,3665.85968242,0.0002,10]
[322236627,1712908584039,3665.85968242,0.0002,10]
[322236629,1712908602052,3665.85968242,0.0002,10]
[322236630,1712908622054,3665.85968242,0.0002,10]
[322236631,1712908640046,3665.85968242,0.0002,10]
[322236632,1712908660058,3665.85968242,0.0002,10]
[322236633,1712908682053,3665.85968242,0.0002,10]
[322236634,1712908700990,1083.54,0.00028,120]